bitfinex/quotes_ETHUSD_20241120
["timestamp","ask_amount","ask_price","bid_price","bid_amount"]
[1732127443672,3.2773,3051.3,3050.7,4.6481]
[1732127443874,3.27746,3051.2,3050.7,4.6481]
[1732127444120,3.2773,3051.3,3050.7,4.6481]
[1732127444411,3.2773,3051.3,3050.8,0.595929]
[1732127444614,3.27747,3051.2,3050.8,0.595929]
[1732127444770,3.27747,3051.2,3050.7,1.6481]
[1732127444971,3.27707,3051.5,3050.7,1.6481]
[1732127445211,3.27767,3051.0,3050.7,2.11291]
[1732127445598,3.27664,3051.9,3050.7,3.42404]
[1732127445803,3.27677,3051.8,3051.2,1.5799]
[1732127446029,3.27666,3051.9,3051.3,1.31088]
[1732127446192,3.27649,3052.1,3051.4,1.31084]
[1732127446373,3.27649,3052.1,3051.3,0.289078]
[1732127446374,3.27676,3051.8,3051.3,0.289078]
[1732127446576,3.27662,3052.0,3051.4,1.31086]
[1732127446783,4.16757058,3052.8,3051.3,0.289078]
[1732127446784,4.532,3052.7,3051.3,0.289078]
[1732127447120,4.532,3052.7,3051.4,0.1868978]
[1732127447121,3.27654,3052.0,3051.4,0.1868978]
[1732127447328,3.27665,3051.9,3051.4,0.1868978]
[1732127447676,3.27637,3052.2,3051.5,1.5165]
[1732127447877,3.27622,3052.3,3051.8,1.31067]
[1732127448132,3.27662,3052.0,3051.5,1.5165]
[1732127448421,3.27693,3051.7,3051.5,1.5165]
[1732127448810,3.27696,3051.6,3051.5,1.5165]
[1732127449020,3.27731,3051.3,3050.9,1.5421]
[1732127449177,3.27731,3051.3,3050.9,1.827421]
[1732127449381,3.27731,3051.3,3050.9,1.5421]
[1732127449382,3.27754,3051.1,3050.9,1.5421]
[1732127450210,3.2777,3051.0,3050.5,1.5421]
[1732127450418,6.55514,3051.1,3050.5,1.827436]
[1732127450623,3.27765,3051.0,3050.5,1.827436]
[1732127450832,3.27754,3051.1,3050.6,0.3138696]
[1732127450987,3.27781,3050.9,3050.6,0.3138696]
[1732127451188,3.27784,3050.8,3050.5,1.5421]
[1732127451487,3.27801,3050.7,3050.5,1.5421]
[1732127451820,3.2781,3050.6,3050.1,1.5391]
[1732127452028,3.27841,3050.3,3050.1,1.5391]
[1732127452237,3.27847,3050.2,3050.1,1.5391]
[1732127452398,4.16757058,3051.2,3049.7,1.5391]
[1732127452399,3.27867,3050.1,3049.7,1.5391]
[1732127452593,3.27876,3050.0,3049.7,1.5391]
[1732127452961,3.27867,3050.1,3049.7,1.5391]
[1732127452962,3.27886,3049.9,3049.7,1.5391]
[1732127453097,3.27871,3050.0,3049.7,1.5391]
[1732127453429,3.27867,3050.1,3049.7,1.5391]
[1732127453668,3.27875,3050.0,3049.7,1.5391]
[1732127453813,3.27848,3050.2,3049.7,2.8507]
[1732127454139,6.55705,3050.2,3049.7,1.82417]
[1732127454446,3.27848,3050.2,3049.7,1.82417]
[1732127454604,3.27828,3050.4,3049.7,3.13576]
[1732127454792,3.27828,3050.4,3049.8,0.313578]
[1732127454993,3.27853,3050.2,3049.8,0.313578]
[1732127455232,3.27831,3050.4,3049.8,0.313578]
[1732127455408,3.27831,3050.4,3049.9,0.1852678]
[1732127455592,10.44503058,3051.2,3049.9,0.1852678]
[1732127455593,3.27804,3050.6,3049.9,1.4967478]
[1732127455795,3.27784,3050.8,3050.0,0.18103258]
[1732127456005,0.41986085,3051.6,3049.9,0.1852678]
[1732127456006,3.27773,3050.9,3050.4,2.977]
[1732127456206,3.27773,3050.9,3050.4,1.6657]
[1732127456408,3.27794,3050.7,3050.4,1.6657]
[1732127456645,3.27773,3050.9,3050.5,0.16657]
[1732127457145,3.27755,3051.1,3050.5,0.16657]
[1732127457146,3.27763,3051.0,3050.5,0.16657]
[1732127457499,1.595,3051.6,3050.5,0.16657]
[1732127457500,3.27783,3050.8,3050.5,0.16657]
[1732127457694,3.27812,3050.6,3050.4,1.6657]
[1732127457895,3.27815,3050.5,3050.4,1.6657]
[1732127458111,3.27815,3050.5,3049.8,1.31153]
[1732127458112,3.27815,3050.5,3049.9,1.6657]
[1732127458309,3.2782,3050.5,3049.9,1.963425]
[1732127458554,3.2782,3050.5,3049.9,1.6657]
[1732127458711,3.27821,3050.5,3049.9,1.6657]
[1732127458914,3.27835,3050.4,3049.9,1.6657]
[1732127459115,3.27839,3050.3,3050.0,0.297723]
[1732127459318,3.27797,3050.7,3049.9,1.6657]
[1732127459633,3.27847,3050.2,3049.9,1.83227]
[1732127460320,3.2778,3050.9,3050.3,1.31133]
[1732127460522,4.16757058,3051.7,3050.1,1.31142]
[1732127460523,3.27729,3051.3,3050.4,1.5347]
[1732127460755,4.6441,3051.6,3050.4,1.5347]
[1732127460756,3.27767,3051.0,3050.4,1.5347]
[1732127460922,3.27767,3051.0,3050.4,2.84599]
[1732127461135,3.27792,3050.8,3050.4,1.5347]
[1732127461333,3.27766,3051.0,3050.4,1.5347]
[1732127461843,3.27767,3051.0,3050.4,2.84597]
[1732127462021,6.55536,3051.0,3050.4,3.130567]
[1732127462226,1.6441,3051.6,3050.4,1.819297]
[1732127462561,3.27795,3050.7,3050.4,1.819297]
[1732127462764,3.27795,3050.7,3050.0,1.31145]
[1732127462765,3.27858,3050.1,3050.0,1.6315]
[1732127462919,3.27874,3050.0,3049.4,1.6315]
[1732127463121,3.27858,3050.1,3049.5,1.606005]
[1732127463352,3.27824,3050.5,3049.7,1.3116]
[1732127463353,3.27839,3050.3,3049.7,1.3116]
[1732127463819,3.2786,3050.1,3049.7,0.2917595]
[1732127464025,1.5111,3050.8,3049.5,0.294325]
[1732127464374,1.5111,3050.8,3049.4,1.6315]
[1732127464375,3.27899,3049.8,3049.4,1.6315]
[1732127464520,3.27825,3050.4,3049.4,1.6315]
[1732127464722,4.16757058,3050.5,3049.4,1.6315]
[1732127464723,3.27922,3049.5,3049.4,1.6315]
[1732127465119,1.5111,3050.1,3049.4,1.6315]
[1732127465120,3.27911,3049.6,3049.4,1.6315]
[1732127465575,3.27848,3050.2,3049.6,1.3116]
[1732127465744,3.0,3050.6,3049.6,1.737081]
[1732127465942,3.27837,3050.3,3049.7,1.3116]
[1732127466255,3.27849,3050.2,3049.8,0.3048681]
[1732127466463,3.27867,3050.1,3049.6,0.425481]
[1732127466628,3.27888,3049.9,3049.4,1.6315]
[1732127466828,3.27786,3050.8,3049.0,1.6315]
[1732127466829,4.93096085,3050.4,3049.0,1.6315]
[1732127467045,3.27955,3049.2,3049.0,1.6315]
[1732127467250,3.27939,3049.4,3049.0,1.6315]
[1732127467487,3.27961,3049.2,3048.6,1.6315]
[1732127467631,4.79012,3049.7,3048.6,1.6315]
[1732127467632,3.27987,3048.9,3048.6,1.6315]
[1732127467839,3.27925,3049.5,3048.7,1.312]
[1732127467840,3.2795,3049.3,3048.7,1.312]
[1732127468140,3.0,3050.0,3048.7,1.31203]
[1732127468359,3.0,3050.0,3048.6,1.6315]
[1732127468360,3.27899,3049.8,3049.1,1.31183]
[1732127468529,3.27852,3050.2,3048.9,1.66429652]
[1732127468724,3.27852,3050.2,3048.5,0.0036758]
[1732127468725,3.27852,3050.2,3049.6,1.6315]
[1732127468979,3.27829,3050.4,3049.9,1.3115]
[1732127469229,1.5111,3051.1,3050.1,1.31141]
[1732127469438,7.44488058,3051.3,3050.2,1.6315]
[1732127469439,3.27748,3051.2,3050.2,1.6315]
[1732127469637,3.27719,3051.4,3050.7,1.31117]
[1732127469849,4.16757058,3051.3,3050.2,1.6315]
[1732127470037,3.27745,3051.2,3050.5,1.31123]
[1732127470276,7.44443058,3051.7,3050.3,1.31134]
[1732127470277,3.27696,3051.6,3050.3,1.31134]
[1732127470582,3.27772,3050.9,3050.3,1.736766]
[1732127470764,3.27766,3051.0,3050.3,1.31134]
[1732127471079,3.27713,3051.5,3050.0,2.1815]
[1732127471234,3.27713,3051.5,3051.0,1.6315]
[1732127471430,3.27691,3051.7,3051.0,1.6315]
[1732127471431,3.27669,3051.9,3051.2,1.31095]
[1732127471884,3.27642,3052.2,3051.5,1.3108]
[1732127472191,3.27642,3052.2,3050.5,1.33123]
[1732127472192,3.276,3052.5,3051.9,1.31065]
[1732127472404,3.27612,3052.4,3051.9,1.31063]
[1732127472538,3.27664,3051.9,3051.8,1.5914]
[1732127473092,3.27644,3052.1,3051.8,1.5914]
[1732127474230,3.27596,3052.6,3051.4,1.5575]
[1732127474436,3.27632,3052.2,3051.4,1.5575]
[1732127474682,4.16757058,3052.1,3050.8,1.5575]
[1732127474852,3.27709,3051.5,3050.8,1.5575]
[1732127475294,3.27726,3051.4,3050.8,1.5575]
[1732127475492,3.27732,3051.3,3050.8,1.5575]
[1732127475787,3.27722,3051.4,3050.8,1.5575]
[1732127475991,3.27722,3051.4,3050.8,2.86862]
[1732127476283,3.27729,3051.3,3050.8,1.5575]
[1732127476488,3.27759,3051.1,3050.8,1.5575]
[1732127476779,3.27716,3051.5,3050.8,2.86859]
[1732127476969,3.27716,3051.5,3050.9,1.31108]
[1732127477170,3.27719,3051.4,3050.9,1.31108]
[1732127477352,3.27719,3051.4,3050.8,2.86862]
[1732127477551,3.27719,3051.4,3050.8,3.586601]
[1732127477763,3.27653,3052.0,3050.8,3.586601]
[1732127477764,3.27708,3051.5,3050.8,3.586601]
[1732127477948,3.27708,3051.5,3050.8,2.86862]
[1732127478253,4.16757058,3052.1,3050.8,1.5575]
[1732127478254,3.27762,3051.0,3050.8,1.5575]
[1732127478471,4.16757058,3052.1,3050.8,1.5575]
[1732127478472,3.27741,3051.2,3050.8,1.5575]
[1732127478780,4.58743143,3052.1,3050.8,1.5575]
[1732127478781,3.27726,3051.4,3050.8,1.5575]
[1732127478992,3.27726,3051.4,3050.8,2.86862]
[1732127479292,3.27707,3051.5,3050.8,2.8686]
[1732127479592,3.27707,3051.5,3051.0,1.31104]
[1732127479770,3.27691,3051.7,3051.1,1.311]
[1732127480084,3.27691,3051.7,3050.9,1.31106]
[1732127480244,3.27691,3051.7,3050.8,3.15546]
[1732127480245,3.27743,3051.2,3050.8,1.84436]
[1732127480438,3.27772,3050.9,3050.8,1.5575]
[1732127480669,3.27853,3050.2,3049.9,1.6217]
[1732127480871,3.27868,3050.0,3049.9,1.6217]
[1732127481053,3.27868,3050.0,3049.3,1.31176]
[1732127481054,3.27892,3049.8,3049.6,1.6217]
[1732127481477,3.27901,3049.7,3049.6,1.6217]
[1732127481640,3.27954,3049.2,3049.1,1.6217]
[1732127481844,3.27934,3049.4,3049.1,1.6217]
[1732127482160,3.27945,3049.3,3049.1,1.6217]
[1732127482375,3.28008,3048.7,3048.6,1.6217]
[1732127482757,3.28008,3048.7,3048.5,0.0036758]
[1732127482758,3.28019,3048.6,3048.5,0.0036758]
[1732127485466,3.28008,3048.7,3048.5,0.0036758]
[1732127485702,3.27978,3049.0,3048.6,1.5526]
[1732127485847,3.27951,3049.3,3048.6,2.86464]
[1732127486055,3.27997,3048.8,3048.6,1.5526]
[1732127486401,3.27975,3049.1,3048.6,1.5526]
[1732127486701,3.27943,3049.4,3048.6,1.5526]
[1732127487048,1.5978,3050.0,3048.6,1.5526]
[1732127487049,3.27915,3049.6,3048.9,1.31191]
[1732127487246,3.27915,3049.6,3049.0,1.3119]
[1732127487492,3.27915,3049.6,3049.1,1.6573]
[1732127488149,3.27876,3050.0,3049.1,1.6573]
[1732127488355,3.27876,3050.0,3049.3,1.31177]
[1732127488554,3.27926,3049.5,3049.1,1.6573]
[1732127488801,3.2793,3049.5,3049.1,1.6573]
[1732127489152,3.27899,3049.8,3049.1,1.6573]
[1732127489456,3.27899,3049.8,3049.1,2.96914]
[1732127489656,3.27906,3049.7,3049.1,1.6573]
[1732127490091,3.27862,3050.1,3049.1,1.6573]
[1732127490402,3.27954,3049.2,3049.1,1.6573]
[1732127490582,3.27954,3049.2,3048.6,1.5503]
[1732127490785,1.5168,3049.7,3048.6,1.5503]
[1732127490971,3.28001,3048.8,3048.5,0.0036758]
[1732127491350,3.28019,3048.6,3048.5,0.0036758]
[1732127491551,7.44708058,3049.3,3048.5,0.0036758]
[1732127491855,3.28889,3049.9,3049.0,1.31186]
[1732127491856,3.27889,3049.9,3049.0,1.31186]
[1732127492076,3.27904,3049.7,3049.0,1.31186]
[1732127492506,1.5647,3050.1,3048.7,1.6664]
[1732127492706,3.27909,3049.7,3048.9,1.31193]
[1732127492918,3.27911,3049.6,3048.9,1.31193]
[1732127493218,3.27926,3049.5,3048.9,1.31193]
[1732127493385,3.27941,3049.4,3048.7,1.6664]
[1732127493593,3.27939,3049.4,3048.7,1.6664]
[1732127493791,1.5647,3050.1,3048.7,1.6664]
[1732127494031,3.28017,3048.7,3048.5,0.0036758]
[1732127494175,3.28005,3048.8,3048.5,0.0036758]
[1732127494374,3.27989,3048.9,3048.5,0.0036758]
[1732127494586,3.27965,3049.1,3048.5,0.0036758]
[1732127495125,3.2796,3049.2,3048.5,1.3157558]
[1732127495424,3.2796,3049.2,3048.5,0.0036758]
[1732127495578,3.27977,3049.0,3048.5,0.0036758]
[1732127495928,3.27959,3049.2,3048.5,0.0036758]
[1732127496078,3.27959,3049.2,3048.6,1.31204]
[1732127496274,6.27906,3049.7,3048.7,1.31199]
[1732127496521,3.27888,3049.9,3048.8,0.03279713]
[1732127496744,3.27843,3050.3,3049.7,1.5658]
[1732127497014,1.310737,3050.8,3049.7,1.5658]
[1732127497015,3.27809,3050.6,3050.1,1.31142]
[1732127497418,3.27832,3050.4,3049.7,2.87737]
[1732127497625,3.27845,3050.3,3049.7,2.87737]
[1732127497838,3.27782,3050.9,3050.3,1.31132]
[1732127497976,3.27751,3051.1,3050.4,1.31129]
[1732127498175,3.27751,3051.1,3050.5,1.57268238]
[1732127498416,3.27803,3050.7,3050.5,1.5658]
[1732127498624,3.278,3050.7,3050.5,1.5658]
[1732127499238,3.27815,3050.5,3049.7,1.5658]
[1732127499442,3.27852,3050.2,3049.7,1.5658]
[1732127500189,3.27858,3050.1,3049.7,1.5658]
[1732127500394,3.27000156,3050.2,3049.7,1.5658]
[1732127500590,3.27000156,3050.2,3049.7,2.87739]
[1732127501196,1.6159,3051.1,3049.7,2.8774]
[1732127501534,3.27767,3051.0,3050.3,1.3113]
[1732127501831,3.27767,3051.0,3050.5,1.31125]
[1732127502244,1.6159,3051.8,3050.4,1.5658]
[1732127502245,3.27726,3051.4,3050.7,1.31116]
[1732127502407,3.27724,3051.4,3050.8,1.31112]
[1732127502600,3.27696,3051.7,3050.9,2.91998]
[1732127502796,3.27696,3051.7,3051.1,1.31098]
[1732127503103,3.27667,3051.9,3051.1,1.31098]
[1732127503292,3.27646,3052.1,3051.4,1.31083]
[1732127503705,1.6121,3052.5,3051.2,1.553]
[1732127503706,3.27696,3051.7,3051.2,1.553]
[1732127503903,3.27661,3052.0,3051.2,1.553]
[1732127504139,3.27636,3052.2,3051.4,0.98313]
[1732127504338,3.27636,3052.2,3051.2,1.553]
[1732127504339,3.27665,3051.9,3051.5,1.6645]
[1732127504492,3.27694,3051.7,3051.5,1.6645]
[1732127504699,3.27671,3051.9,3051.5,1.6645]
[1732127505299,6.55178,3052.6,3051.5,1.6645]
[1732127505497,6.55178,3052.6,3051.2,1.6215]
[1732127505498,3.2772,3051.4,3051.2,1.6215]
[1732127505700,3.27721,3051.4,3051.2,1.6215]
[1732127506015,3.27721,3051.4,3050.4,3.0]
[1732127506016,3.27819,3050.5,3049.8,2.60516]
[1732127506355,3.27754,3051.1,3049.8,1.6215]
[1732127506356,3.27765,3051.0,3049.8,1.6215]
[1732127506508,3.27847,3050.2,3049.8,1.6215]
[1732127506697,3.27841,3050.3,3049.8,1.6215]
[1732127506897,8.08801,3050.5,3049.8,1.6215]
[1732127507121,3.27839,3050.3,3049.8,1.6215]
[1732127507317,3.27866,3050.1,3049.8,1.6215]
[1732127507880,3.2781,3050.6,3049.8,2.60515]
[1732127508165,3.2781,3050.6,3049.9,0.98363]
[1732127508401,3.27795,3050.7,3049.8,2.60515]
[1732127508680,3.0,3051.0,3049.8,2.60515]
[1732127508681,3.27806,3050.6,3049.8,2.60515]
[1732127508822,3.27806,3050.6,3049.8,1.6215]
[1732127508823,3.27834,3050.4,3049.8,1.6215]
[1732127509018,3.27772,3050.9,3049.8,1.6215]
[1732127509019,3.27836,3050.3,3049.8,1.6215]
[1732127509818,3.27859,3050.1,3049.8,1.6215]
[1732127510023,3.27876,3050.0,3049.8,1.6215]
[1732127510564,3.27879,3049.9,3049.7,0.0036758]
[1732127510788,3.2789,3049.8,3049.7,0.0036758]
[1732127511286,7.9199,3049.8,3049.7,0.0036758]
[1732127513368,7.9199,3049.8,3049.7,5.8e-06]
[1732127513547,3.28019,3048.6,3048.5,0.0036758]
[1732127517020,3.28003,3048.8,3048.5,0.0036758]
[1732127517221,3.28008,3048.7,3048.6,1.5811]
[1732127517470,3.28003,3048.8,3048.6,1.5811]
[1732127517866,3.28008,3048.7,3048.6,1.5811]
[1732127518027,3.28008,3048.7,3048.5,0.0036758]
[1732127518219,3.28019,3048.6,3048.5,0.0036758]
[1732127519428,4.89469,3048.6,3048.5,0.0036758]
[1732127519625,7.89469,3048.6,3048.5,0.0036758]
[1732127520261,4.89469,3048.6,3048.5,0.0036758]
[1732127520459,3.28019,3048.6,3048.5,0.0036758]
[1732127520783,6.28019,3048.6,3048.5,0.0036758]
[1732127522728,3.0,3049.2,3048.5,0.0036758]
[1732127522977,1.5309,3049.3,3048.5,0.0036758]
[1732127522978,3.27995,3048.9,3048.5,0.0036758]
[1732127523284,3.27966,3049.1,3048.5,0.0036758]
[1732127523503,7.44646058,3049.9,3048.5,0.0036758]
[1732127523504,3.27927,3049.5,3048.6,1.6406]
[1732127523633,8.94656058,3049.9,3048.6,1.6406]
[1732127523634,3.2789,3049.8,3048.6,1.6406]
[1732127523969,5.66767058,3049.9,3048.8,0.98399]
[1732127523970,1.5001,3049.9,3048.8,0.98399]
[1732127524171,3.27842,3050.3,3049.0,1.6406]
[1732127524376,1.5001,3050.4,3048.6,1.00404]
[1732127524377,3.27831,3050.4,3049.7,1.6288]
[1732127524586,3.2782,3050.5,3049.8,0.98365]
[1732127524876,3.27859,3050.1,3049.7,1.6288]
[1732127525077,3.27837,3050.3,3049.7,1.6288]
[1732127525383,3.27837,3050.3,3049.7,2.6125]
[1732127525527,4.85896,3051.2,3050.1,0.98357]
[1732127525528,3.27802,3050.7,3050.1,0.98357]
[1732127525726,3.27826,3050.4,3049.9,1.6288]
[1732127525927,3.27811,3050.6,3049.9,2.61242]
[1732127526140,3.27782,3050.9,3050.1,0.98356]
[1732127526357,3.27794,3050.7,3050.1,0.98356]
[1732127526777,3.27766,3051.0,3049.9,1.6288]
[1732127527105,1.5815,3051.2,3049.9,1.6288]
[1732127527106,3.27858,3050.1,3049.9,1.6288]
[1732127527281,3.27857,3050.2,3049.9,1.6288]
[1732127527597,3.27809,3050.6,3049.9,1.6288]
[1732127527754,3.27826,3050.4,3049.9,1.6288]
[1732127527936,3.27839,3050.3,3049.9,1.6288]
[1732127528141,3.27793,3050.7,3049.9,1.6288]
[1732127528142,3.27793,3050.7,3049.9,2.61243]
[1732127528341,4.16757058,3051.1,3049.9,2.61243]
[1732127528342,3.27838,3050.3,3049.9,1.6288]
[1732127528892,3.27849,3050.2,3049.9,1.6288]
[1732127529103,3.27861,3050.1,3049.9,1.6288]
[1732127529255,3.27843,3050.3,3049.9,1.6288]
[1732127529456,3.0,3050.9,3049.9,1.6288]
[1732127529457,3.27848,3050.2,3049.9,1.6288]
[1732127529995,3.27829,3050.4,3049.9,1.6288]
[1732127530207,3.27792,3050.8,3049.9,1.6288]
[1732127530355,3.27792,3050.8,3050.3,0.9835]
[1732127530551,3.27759,3051.1,3049.7,3.98369]
[1732127530552,3.27759,3051.1,3050.5,0.98344]
[1732127530790,3.27729,3051.3,3050.7,0.98337]
[1732127531178,3.2771,3051.5,3050.7,0.98337]
[1732127531378,3.27761,3051.0,3050.6,1.5625]
[1732127531583,3.27736,3051.3,3050.6,1.5625]
[1732127532117,3.27759,3051.1,3050.6,1.5625]
[1732127532407,3.27742,3051.2,3050.6,2.54589]
[1732127532574,3.27673,3051.9,3051.2,0.98321]
[1732127532779,3.27677,3051.8,3051.3,1.6307]
[1732127532993,3.27677,3051.8,3051.3,2.61388]
[1732127533167,7.44343058,3052.7,3051.5,0.98312]
[1732127533168,3.27641,3052.2,3051.5,0.98312]
[1732127533389,3.27631,3052.3,3051.5,0.98312]
[1732127533629,3.2765,3052.1,3051.4,0.98313]
[1732127533797,3.2765,3052.1,3051.5,0.98312]
[1732127533993,7.44341058,3052.7,3051.7,1.6067]
[1732127534191,3.27649,3052.1,3051.7,1.6067]
[1732127534509,3.27582,3052.7,3051.8,0.983]
[1732127534693,0.01,3053.7,3051.8,0.983]
[1732127534694,3.27481,3053.7,3052.9,0.98266]
[1732127534897,3.27482,3053.6,3052.8,0.98269]
[1732127535501,3.27495,3053.5,3052.8,0.98269]
[1732127535704,3.27434,3054.1,3052.7,1.5465]
[1732127535705,3.27439,3054.0,3052.7,1.5465]
[1732127535931,3.27568,3052.8,3052.7,1.5465]
[1732127536433,3.27568,3052.8,3052.1,1.6593]
[1732127536611,3.27587,3052.7,3052.1,1.6593]
[1732127536807,3.27582,3052.7,3052.1,1.6593]
[1732127537009,8.71937058,3053.8,3052.1,1.6593]
[1732127537226,3.27596,3052.6,3052.1,1.6593]
[1732127537454,3.27561,3052.9,3052.1,1.6593]
[1732127537657,3.27547,3053.0,3052.2,0.55]
[1732127537969,0.88969996,3055.4,3052.1,1.6593]
[1732127537970,8.99363058,3054.2,3052.8,0.9827]
[1732127538276,3.27494,3053.5,3052.7,1.5274]
[1732127538635,3.27521,3053.3,3052.7,1.5274]
[1732127538929,3.27521,3053.3,3052.7,2.51011]
[1732127539162,3.27568,3052.8,3052.7,1.5274]
[1732127539371,3.27623,3052.3,3051.9,1.527]
[1732127539678,3.2765,3052.1,3051.9,1.527]
[1732127539839,3.27653,3052.0,3051.9,1.527]
[1732127540552,3.27653,3052.0,3051.2,1.6587]
[1732127540873,3.27678,3051.8,3051.2,1.6587]
[1732127541176,1.5673,3052.6,3051.2,1.6587]
[1732127541177,3.27729,3051.3,3051.2,1.6587]
[1732127541375,3.27768,3051.0,3050.4,1.5801]
[1732127541577,3.27781,3050.9,3050.4,1.5801]
[1732127541736,3.27768,3051.0,3050.4,1.5801]
[1732127542375,3.27778,3050.9,3050.4,1.5801]
[1732127542579,4.16757058,3051.7,3050.4,1.5801]
[1732127542580,3.0,3051.6,3050.4,1.5801]
[1732127542878,3.27815,3050.5,3050.4,1.5801]
[1732127543089,3.27707,3051.5,3050.4,1.5801]
[1732127543090,3.27804,3050.6,3050.4,1.5801]
[1732127543433,3.27763,3051.0,3050.4,1.5801]
[1732127543699,3.27784,3050.8,3050.4,1.5801]
[1732127543879,7.44447058,3051.7,3050.4,1.5801]
[1732127544108,7.44447058,3051.7,3049.7,1.5474]
[1732127544109,3.0,3050.8,3049.7,1.5474]
[1732127544405,3.27923,3049.5,3049.0,1.5474]
[1732127544615,3.27963,3049.2,3049.0,1.5474]
[1732127544969,1.6291,3050.4,3049.1,0.98389]
[1732127545309,3.27941,3049.4,3049.0,1.5474]
[1732127545464,3.27874,3050.0,3049.2,0.98385]
[1732127545667,3.27832,3050.4,3049.8,1.5474]
[1732127545891,3.2775,3051.1,3049.8,2.53104]
[1732127546089,5.79667058,3051.3,3050.0,0.98358]
[1732127546302,3.28668,3051.9,3050.4,2.53087]
[1732127546303,3.27762,3051.0,3050.4,2.53087]
[1732127546514,3.2772,3051.4,3050.6,0.98339]
[1732127546711,0.01,3052.7,3049.9,1.01640353]
[1732127546712,3.27698,3051.6,3050.7,1.58017569]
[1732127547005,3.27708,3051.5,3050.8,0.98334]
[1732127547366,3.27664,3052.0,3051.0,0.98328]
[1732127547565,1.6291,3052.3,3050.7,1.5474]
[1732127547566,1.6291,3052.3,3050.8,0.98334]
[1732127547767,1.6291,3052.3,3051.0,0.98327]
[1732127547768,3.27688,3051.7,3051.0,0.98327]
[1732127547962,3.27701,3051.6,3050.8,0.98334]
[1732127548511,3.27741,3051.2,3050.7,1.5474]
[1732127548767,3.27722,3051.4,3050.7,1.5474]
[1732127548928,3.27744,3051.2,3050.7,1.5474]
[1732127549440,4.16757058,3052.1,3050.8,0.98334]
[1732127549441,3.27699,3051.6,3050.8,0.98334]
[1732127549639,3.27699,3051.6,3050.7,1.5474]
[1732127549841,3.27702,3051.6,3050.9,0.98331]
[1732127550768,3.27758,3051.1,3050.7,1.5474]
[1732127550973,3.27748,3051.2,3050.7,1.5474]
[1732127551125,3.27719,3051.4,3050.7,2.53077]
[1732127551467,3.27771,3051.0,3050.7,1.5474]
[1732127551679,3.27735,3051.3,3050.7,1.5474]
[1732127551843,3.0,3052.0,3050.7,1.5474]
[1732127552183,3.27782,3050.8,3050.7,1.5474]
[1732127552333,3.27811,3050.6,3050.1,1.5474]
[1732127552532,3.27833,3050.4,3050.1,1.5474]
[1732127552767,3.27847,3050.2,3050.1,1.5474]
[1732127552950,3.27833,3050.4,3050.1,1.5474]
[1732127553334,4.16757058,3051.3,3050.1,1.5474]
[1732127553335,3.0,3051.1,3050.1,1.5474]
[1732127553533,3.27815,3050.5,3050.1,1.5474]
[1732127554775,3.27815,3050.5,3049.2,0.01]
[1732127554776,3.27869,3050.0,3049.4,2.55319]
[1732127554929,3.27899,3049.8,3049.4,1.5694]
[1732127556229,3.27864,3050.1,3049.4,1.5694]
[1732127556353,3.2788,3049.9,3049.4,2.55319]
[1732127556676,3.2788,3049.9,3049.4,1.5694]
[1732127556836,3.0,3050.8,3049.4,1.5694]
[1732127556837,0.01,3050.7,3049.4,1.5694]
[1732127557042,3.27909,3049.7,3049.4,1.5694]
[1732127557549,3.27909,3049.7,3048.7,3.0]
[1732127557550,3.27909,3049.7,3048.8,1.5645]
[1732127557751,3.27924,3049.5,3048.8,2.54846]
[1732127558083,3.27901,3049.7,3048.9,0.98393]
[1732127558294,3.27901,3049.7,3049.2,1.5645]
[1732127559141,3.27855,3050.2,3049.6,0.9837]
[1732127559345,3.27887,3049.9,3049.3,0.98382]
[1732127559585,3.27887,3049.9,3049.2,1.5645]
[1732127559586,3.27886,3049.9,3049.2,1.5645]
[1732127559982,3.27893,3049.8,3049.2,1.5645]
[1732127560293,3.27891,3049.8,3049.2,2.54834]
[1732127560504,5.76187058,3050.9,3049.2,1.5645]
[1732127560786,3.01,3051.0,3048.7,1.5751]
[1732127560787,3.27983,3049.0,3048.7,1.5751]
[1732127561007,3.27997,3048.8,3048.7,1.5751]
[1732127561143,0.01,3049.9,3048.7,1.5751]
[1732127561144,3.27957,3049.2,3048.7,1.5751]
[1732127561777,7.44623058,3050.1,3048.7,1.5751]
[1732127561778,3.27941,3049.4,3048.7,1.5751]
[1732127562045,3.27915,3049.6,3048.8,0.98399]
[1732127562279,3.2789,3049.8,3048.9,2.00069584]
[1732127562508,4.16757058,3050.5,3049.0,1.5751]
[1732127562509,3.27938,3049.4,3049.0,1.5751]
[1732127562651,4.5685,3050.3,3049.0,2.55902]
[1732127562652,3.27913,3049.6,3049.0,2.55902]
[1732127562999,4.5685,3050.3,3049.0,1.5751]
[1732127563289,4.5685,3050.3,3048.6,0.0036758]
[1732127563290,3.27997,3048.8,3048.7,1.5918]
[1732127564002,3.27997,3048.8,3048.6,0.0036758]
[1732127564497,3.28008,3048.7,3048.6,0.0036758]
[1732127567754,7.92548,3048.7,3048.6,0.0036758]
[1732127568276,8.48548,3048.7,3048.6,5.8e-06]
[1732127568896,7.92548,3048.7,3048.6,5.8e-06]
[1732127569197,7.92548,3048.7,3048.5,0.0036758]
[1732127569198,8.48559,3048.6,3048.5,1.6e-06]
[1732127570698,8.91886751,3048.6,3048.5,1.6e-06]
[1732127571004,3.2818,3047.1,3046.5,1.5612]
[1732127571204,6.2818,3047.1,3045.9,0.98492]
[1732127571359,6.2818,3047.1,3046.1,1.5612]
[1732127572601,6.2818,3047.1,3045.6,0.98501]